bitfinex/quotes_ETHUSD_20241122
["timestamp","ask_amount","ask_price","bid_price","bid_amount"]
[1732299186720,3.03141,3298.8,3298.3,2.4543968]
[1732299187417,3.06930764,3298.8,3298.3,2.4543968]
[1732299187628,3.06930764,3298.8,3298.3,2.12228]
[1732299187783,3.06930764,3298.8,3298.1,3.321268]
[1732299187784,3.03155,3298.7,3298.1,3.321268]
[1732299188118,3.03155,3298.7,3298.0,0.8163]
[1732299188119,3.03168,3298.5,3298.0,5.12248]
[1732299188332,0.03790012,3298.4,3298.0,5.12248]
[1732299188622,0.03790012,3298.4,3298.0,2.9515158]
[1732299188785,0.03790012,3298.4,3298.1,3.0]
[1732299189418,0.03790012,3298.4,3297.9,3.0]
[1732299189732,3.83494,3298.3,3297.8,2.12261]
[1732299189911,3.83494,3298.3,3297.5,0.7898]
[1732299189912,0.03790222,3298.2,3297.9,2.12252]
[1732299190093,0.803,3298.3,3298.0,2.12245]
[1732299190299,0.803,3298.3,3298.1,2.12237]
[1732299190632,0.7818,3298.7,3298.1,2.89977]
[1732299190927,3.03164,3298.6,3298.2,0.303]
[1732299191126,3.03164,3298.6,3298.1,2.89977]
[1732299191301,3.06954007,3298.6,3298.1,2.89977]
[1732299191488,0.7818,3298.7,3298.1,2.89977]
[1732299191687,3.8133,3298.7,3298.2,2.12236]
[1732299191885,0.7818,3298.7,3298.2,2.12236]
[1732299192220,0.7818,3298.7,3298.1,2.89981]
[1732299192388,0.0379001,3298.6,3298.1,2.12241]
[1732299192592,3.0695401,3298.6,3297.9,2.12252]
[1732299193103,3.03173,3298.5,3297.9,2.12252]
[1732299193305,0.7818,3298.7,3297.9,2.12252]
[1732299193306,0.03790011,3298.4,3298.1,2.12239]
[1732299193505,3.03147,3298.8,3297.6,5.12272]
[1732299193506,3.03203,3298.2,3297.6,5.12272]
[1732299193723,3.03203,3298.2,3297.2,2.88455]
[1732299193724,0.03790594,3298.2,3297.2,0.7616]
[1732299193908,3.0321,3298.1,3297.5,2.12278]
[1732299194091,0.7652,3297.7,3297.3,5.1229]
[1732299194301,0.7652,3297.7,3297.3,2.0607665]
[1732299194596,0.03790868,3298.3,3297.3,2.0607665]
[1732299194597,0.7652,3298.2,3297.7,1.81944]
[1732299194934,0.03790374,3298.1,3297.7,1.81944]
[1732299195153,0.03790374,3298.1,3297.4,0.7616]
[1732299195440,3.03224,3297.9,3297.4,1.81961]
[1732299195629,0.03790809,3297.8,3297.4,1.81961]
[1732299195831,0.03790809,3297.8,3297.3,0.2411365]
[1732299196125,0.03790809,3297.8,3297.3,3.8804165]
[1732299196326,3.07023809,3297.8,3297.3,2.0607565]
[1732299196542,0.03790809,3297.8,3297.3,2.0607565]
[1732299196834,3.03224,3297.9,3297.4,1.8196]
[1732299196993,0.03790807,3297.8,3297.2,3.0]
[1732299197336,0.03790807,3297.8,3297.3,1.81963]
[1732299197542,0.815,3297.7,3297.3,3.63926]
[1732299197706,0.03790806,3297.6,3297.3,1.81963]
[1732299197900,0.03790806,3297.6,3297.3,3.63926]
[1732299198328,0.815,3297.7,3297.3,3.63926]
[1732299198530,0.815,3298.0,3297.5,1.81951]
[1732299200128,3.84719,3298.0,3297.5,1.81951]
[1732299200449,3.03225,3297.9,3297.3,1.81964]
[1732299200605,0.03790802,3297.8,3297.4,1.8196]
[1732299200955,0.03790802,3297.8,3297.2,0.98116]
[1732299201238,0.03790802,3297.8,3296.8,1.81991]
[1732299201239,3.84186,3297.5,3296.8,1.81991]
[1732299201454,3.03284,3297.3,3296.8,3.63982]
[1732299201746,0.03791275,3297.2,3296.8,1.81991]
[1732299203152,3.03299,3297.1,3296.5,3.0]
[1732299203357,0.86411719,3297.0,3296.5,4.8201]
[1732299203555,3.03322,3296.9,3296.3,4.82021]
[1732299203736,0.86411719,3297.0,3296.5,1.8201]
[1732299203924,3.85928,3297.0,3296.5,1.8201]
[1732299204248,0.8262,3297.0,3296.6,1.82005]
[1732299204759,3.85927,3297.0,3296.4,1.82012]
[1732299205114,3.85927,3297.0,3296.3,4.82019]
[1732299205316,3.85927,3297.0,3296.5,1.8201]
[1732299205735,0.8262,3297.0,3296.6,1.82005]
[1732299206015,3.03287,3297.2,3296.6,1.82003]
[1732299206251,3.03287,3297.2,3296.3,3.0]
[1732299206421,3.03297,3297.1,3296.6,1.82002]
[1732299206626,3.03288,3297.2,3296.7,1.81999]
[1732299206852,3.86161,3297.3,3296.7,1.81999]
[1732299207058,7.63160251,3297.3,3296.7,1.81999]
[1732299207223,3.03294,3297.2,3296.6,1.82002]
[1732299207424,0.0379176,3297.1,3296.6,1.82002]
[1732299207641,3.03294,3297.2,3296.6,1.82002]
[1732299207829,5.36190276,3297.3,3296.6,1.82002]
[1732299208043,3.03298,3297.1,3296.6,1.82002]
[1732299208238,0.03791758,3297.0,3296.6,1.82002]
[1732299208421,3.03298,3297.1,3296.6,1.82002]
[1732299209019,0.03791757,3297.0,3296.6,1.82002]
[1732299209572,0.8288,3297.3,3296.9,1.81985]
[1732299209863,0.03791468,3297.2,3296.5,3.0]
[1732299210159,3.03317,3296.9,3296.2,1.82027]
[1732299210323,3.07116053,3296.8,3296.2,1.82027]
[1732299210664,0.03792053,3296.8,3296.2,1.82027]
[1732299210959,0.03792053,3296.8,3296.4,1.82016]
[1732299211317,0.03792053,3296.8,3296.2,1.82027]
[1732299211523,3.07116053,3296.8,3296.3,4.82022]
[1732299211751,3.03334,3296.7,3296.1,0.303]
[1732299211957,0.7112262,3297.6,3294.8,1.83103]
[1732299211958,0.8008,3296.5,3295.8,1.82046]
[1732299212123,0.8008,3296.5,3296.2,1.82024]
[1732299212318,0.8008,3296.5,3296.2,3.64047]
[1732299212556,0.8008,3296.5,3296.2,1.82024]
[1732299213861,0.8008,3296.5,3296.1,1.82032]
[1732299214522,0.8008,3296.5,3296.2,1.82025]
[1732299214720,0.8008,3296.5,3296.1,1.82032]
[1732299214964,0.8008,3296.5,3296.4,1.82016]
[1732299215123,0.03792384,3297.1,3296.6,1.82005]
[1732299215124,0.7837,3296.8,3296.6,1.82005]
[1732299215319,0.7837,3297.1,3296.7,1.82]
[1732299215756,0.7837,3297.1,3296.5,1.82008]
[1732299215956,3.07101784,3297.0,3296.5,1.82008]
[1732299216972,0.7837,3297.1,3296.3,2.79688761]
[1732299217175,0.7753,3297.3,3296.9,1.81985]
[1732299217738,0.7753,3297.3,3297.1,1.81973]
[1732299218073,0.7704,3297.7,3297.4,1.81956]
[1732299218276,0.7704,3297.7,3297.3,1.81961]
[1732299219156,1.150673,3297.7,3297.1,0.8213]
[1732299219366,0.03791052,3297.6,3297.1,1.81973]
[1732299219580,3.80287,3297.7,3297.1,1.81973]
[1732299219880,3.07046129,3297.6,3297.1,1.81973]
[1732299220240,3.03261,3297.5,3296.9,2.12287]
[1732299220448,3.07064128,3297.4,3296.9,2.12287]
[1732299220868,0.03791128,3297.4,3296.8,0.8213]
[1732299221054,3.03269,3297.5,3296.8,1.81991]
[1732299221250,3.03275,3297.4,3296.8,1.81991]
[1732299221579,3.07060472,3297.5,3297.0,1.81981]
[1732299221775,0.03791472,3297.3,3296.8,1.81991]
[1732299221982,0.03791472,3297.3,3296.9,1.81988]
[1732299222642,0.03791472,3297.3,3296.8,1.81991]
[1732299222643,0.03791472,3297.3,3297.0,1.81983]
[1732299222871,0.03791266,3297.5,3296.8,1.81991]
[1732299223182,3.07056266,3297.5,3296.9,1.81985]
[1732299223486,3.07056266,3297.5,3296.9,3.63969]
[1732299223657,3.03251,3297.6,3297.1,1.81977]
[1732299223848,3.412794,3297.6,3297.1,1.81977]
[1732299224702,3.412794,3297.6,3297.1,2.42635]
[1732299224856,0.80831232,3297.7,3297.4,2.42611]
[1732299224857,0.7704,3297.7,3297.4,2.42611]
[1732299225063,0.7971,3298.1,3297.2,0.7962]
[1732299225395,0.45699645,3298.0,3297.5,2.42607]
[1732299225597,0.7971,3298.1,3297.7,2.42592]
[1732299226257,0.7971,3298.1,3297.6,2.42596]
[1732299226463,3.82918,3298.1,3297.6,2.42599]
[1732299226677,0.686118,3298.0,3297.6,2.42599]
[1732299227462,0.0379065,3297.9,3297.6,2.42599]
[1732299229965,0.686118,3298.0,3297.6,2.42599]
[1732299230361,0.686118,3298.0,3297.2,2.42625]
[1732299230362,0.03790648,3297.9,3297.2,2.42625]
[1732299230569,3.03246,3297.7,3297.2,2.42625]
[1732299230864,3.80833,3297.8,3297.2,2.42626]
[1732299231211,3.03245,3297.7,3297.2,2.42626]
[1732299232117,0.81391107,3297.8,3297.2,0.785267]
[1732299232274,3.79936,3298.2,3297.7,2.42593]
[1732299232477,0.7674,3298.2,3297.4,2.42615]
[1732299232676,3.03224,3297.9,3297.4,2.42615]
[1732299232875,0.03790738,3297.8,3297.4,2.42615]
[1732299234061,3.03224,3297.9,3297.4,2.42615]
[1732299234767,0.03790886,3297.8,3297.4,2.42615]
[1732299235075,0.03790885,3297.8,3297.4,2.42615]
[1732299235404,0.03790885,3297.8,3297.6,2.42595]
[1732299235698,0.03790769,3298.1,3297.6,2.42595]
[1732299235896,0.03790769,3298.1,3297.8,2.42585]
[1732299235897,0.41784269,3298.1,3297.8,2.42585]
[1732299236089,0.379935,3298.1,3297.8,2.42585]
[1732299236813,0.379935,3298.1,3297.0,2.79688761]
[1732299236814,0.7565,3297.9,3297.5,2.42606]
[1732299237106,0.7565,3297.9,3297.6,2.42595]
[1732299237908,0.7565,3297.9,3297.8,2.42585]
[1732299238398,0.7565,3297.9,3297.6,2.42595]
[1732299238610,0.7565,3297.9,3297.7,2.42591]
[1732299238971,0.7565,3297.9,3297.8,2.42585]
[1732299241216,0.7565,3297.9,3297.5,2.42602]
[1732299243601,0.7565,3297.9,3297.4,0.8058]
[1732299244276,0.7565,3297.9,3297.4,3.23192]
[1732299244465,0.7565,3297.9,3297.4,0.8058]
[1732299245169,0.7565,3297.9,3297.5,2.42607]
[1732299246210,0.03790676,3297.8,3297.4,0.8058]
[1732299246410,0.03790676,3297.8,3297.3,2.42617]
[1732299247219,3.07028676,3297.8,3297.3,2.42617]
[1732299247710,3.03243,3297.7,3297.2,3.20199]
[1732299247916,0.03790869,3297.6,3297.2,3.20199]
[1732299248074,0.03790869,3297.6,3297.2,2.42629]
[1732299248981,3.07034867,3297.7,3297.2,2.42629]
[1732299249210,0.03790867,3297.7,3297.2,2.4263]
[1732299249713,0.03790867,3297.7,3297.1,2.42636]
[1732299249882,0.7565,3297.9,3296.7,3.09988761]
[1732299249883,3.79619,3297.3,3296.8,5.42654]
[1732299250077,0.03791214,3297.2,3296.8,2.42654]
[1732299250276,3.03303,3297.1,3296.5,2.42679]
[1732299250621,3.07102546,3297.0,3296.5,2.42679]
[1732299250973,3.07102546,3297.0,3296.3,2.72996]
[1732299250974,3.03326,3296.8,3296.6,0.303]
[1732299251188,0.03791669,3296.7,3296.6,0.303]
[1732299251616,3.07125669,3296.7,3296.3,2.42696]
[1732299251774,3.07125669,3296.7,3296.2,2.42702]
[1732299252820,3.07125669,3296.7,3296.2,5.42702]
[1732299253014,3.03357,3296.5,3295.8,5.61167]
[1732299253326,0.03792317,3296.4,3295.9,2.42724]
[1732299253683,0.03792317,3296.4,3295.8,1.0601]
[1732299253883,3.80741,3296.3,3295.8,0.303]
[1732299254087,0.03792347,3296.2,3295.8,2.73032]
[1732299254300,0.03792347,3296.2,3295.8,2.73031]
[1732299254713,0.03792347,3296.2,3295.7,2.42736]
[1732299255001,0.7737,3296.3,3295.9,2.4272]
[1732299255209,3.0338,3296.2,3295.7,2.42735]
[1732299255552,3.78585,3295.7,3295.0,0.795]
[1732299255728,0.03793244,3295.6,3295.2,2.42776]
[1732299258222,0.7748,3296.4,3295.7,2.42733]
[1732299258424,0.7748,3296.4,3296.0,2.42717]
[1732299259297,0.03792527,3296.3,3295.8,2.42731]
[1732299260130,3.07162527,3296.3,3295.8,2.42731]
[1732299261110,0.03792527,3296.3,3295.8,2.42731]
[1732299261698,3.52819503,3296.3,3295.6,2.42742]
[1732299261935,3.03405,3296.0,3295.5,3.0]
[1732299262141,3.03405,3296.0,3295.4,2.42759]
[1732299262302,3.85238,3295.8,3295.0,5.42789]
[1732299262502,3.07224109,3295.7,3295.2,2.42772]
[1732299262721,0.03793109,3295.7,3295.3,2.42769]
[1732299262934,0.03793109,3295.7,3295.2,2.42772]
[1732299263338,0.03793109,3295.7,3295.3,2.42769]
[1732299263507,0.03793109,3295.7,3295.3,0.0304]
[1732299263902,0.03793109,3295.7,3295.3,2.45809]
[1732299266635,0.03793109,3295.7,3295.3,0.0304]
[1732299267839,0.03793109,3295.7,3295.4,2.42758]
[1732299268015,0.8182,3295.8,3295.4,2.42758]
[1732299268213,0.8182,3295.8,3295.3,0.0304]
[1732299268214,3.0344,3295.6,3295.3,0.0304]
[1732299268741,0.385228,3295.7,3295.3,0.0304]
[1732299268942,6.88666,3295.8,3295.3,0.0304]
[1732299268943,0.8182,3295.8,3295.3,2.45802]
[1732299269470,3.85237,3295.8,3295.3,2.45802]
[1732299270030,3.85237,3295.8,3295.3,0.0304]
[1732299270229,3.07221383,3295.7,3295.3,0.0304]
[1732299270433,3.03428,3295.7,3295.3,0.0304]
[1732299271166,4.30939764,3295.8,3295.3,0.0304]
[1732299271622,4.34733146,3295.8,3295.3,0.0304]
[1732299271829,1.27522764,3295.8,3295.4,2.42761]
[1732299272046,0.8182,3295.8,3295.3,2.45809]
[1732299272327,0.8182,3295.8,3295.5,2.42755]
[1732299272867,0.8182,3295.8,3295.5,2.45795]
[1732299273173,0.8182,3295.8,3295.6,2.42747]
[1732299273342,0.8182,3295.8,3295.6,4.8853]
[1732299273527,0.03793075,3296.1,3296.0,2.42718]
[1732299273865,0.753,3296.2,3296.0,2.42718]
[1732299273866,0.753,3296.2,3296.0,2.45758]
[1732299274053,0.753,3296.2,3296.1,2.42711]
[1732299274364,0.753,3296.2,3296.1,2.45751]
[1732299275743,0.03792737,3296.6,3296.3,2.42692]
[1732299275744,0.753,3296.6,3296.3,2.42692]
[1732299275946,0.79092381,3296.6,3296.3,0.0304]
[1732299276141,3.82436381,3296.6,3296.3,0.0304]
[1732299276650,3.82438381,3296.6,3296.3,0.0304]
[1732299277672,0.771,3296.5,3296.3,0.0304]
[1732299277834,0.42216443,3296.4,3296.3,0.0304]
[1732299280166,3.80492,3296.1,3295.4,2.42761]
[1732299280348,3.80492,3296.1,3295.6,2.42743]
[1732299280349,0.03793182,3296.0,3295.6,2.42743]
[1732299280723,0.38428518,3295.9,3295.4,2.42758]
[1732299280871,0.03793182,3295.8,3295.5,2.42754]
[1732299281186,0.03793182,3295.8,3295.4,2.42758]
[1732299281828,0.38428518,3295.9,3295.6,2.42747]
[1732299281984,0.03793181,3296.0,3295.6,2.42747]
[1732299282166,0.03793181,3296.0,3295.7,2.4274]
[1732299282505,0.771,3296.1,3295.6,4.8549]
[1732299282714,0.771,3296.1,3295.6,2.42743]
[1732299282872,0.380486,3296.0,3295.6,2.42743]
[1732299283414,0.03793064,3295.9,3295.4,2.42756]
[1732299283916,3.07203064,3295.9,3295.4,2.42756]
[1732299284088,0.34525166,3295.8,3295.4,2.42756]
[1732299284415,0.03793178,3295.7,3295.4,2.42756]
[1732299284622,0.03793178,3295.7,3295.6,2.42747]
[1732299284782,1.53667846,3296.1,3295.6,2.42747]
[1732299284983,4.57062846,3296.1,3295.6,2.42747]
[1732299285585,0.45706285,3296.0,3295.6,2.42747]
[1732299285930,0.03793061,3295.9,3295.4,2.42756]
[1732299286086,0.03793061,3295.9,3295.4,2.42758]
[1732299286484,0.03793061,3295.9,3295.5,2.4275]
[1732299286729,0.35289735,3295.8,3295.6,2.42745]
[1732299286933,1.49874784,3296.1,3295.7,2.4274]
[1732299287083,0.771,3296.1,3295.8,2.42731]
[1732299287290,0.771,3296.1,3295.6,4.85487]
[1732299287488,0.80893059,3296.1,3295.6,2.42742]
[1732299288021,0.80893059,3296.1,3295.6,2.42741]
[1732299288599,0.771,3296.1,3295.6,2.42742]
[1732299288802,0.771,3296.1,3295.7,2.4274]
[1732299289000,0.380479,3296.0,3295.7,2.4274]
[1732299289225,0.380479,3296.0,3295.0,0.8311]
[1732299289431,0.8099,3296.4,3296.0,2.42718]
[1732299289726,0.8099,3296.4,3296.1,2.42706]
[1732299290512,0.8099,3296.4,3296.0,2.42718]
[1732299290823,3.84352,3296.4,3295.9,2.42724]
[1732299291034,3.45599823,3296.3,3295.8,2.42732]
[1732299291332,0.8002,3296.0,3295.6,2.42744]
[1732299291530,0.383409,3295.9,3295.6,2.42744]
[1732299291826,0.383409,3295.9,3295.5,2.42753]
[1732299291991,0.03793093,3295.8,3295.4,2.4276]
[1732299292187,0.03793093,3295.8,3295.2,2.42773]
[1732299292399,0.46348492,3295.8,3295.4,2.42762]
[1732299292811,0.03793093,3295.8,3295.4,2.42762]
[1732299293001,0.0379314,3295.9,3295.4,2.42762]
[1732299293424,0.0379314,3295.9,3295.5,2.42749]
[1732299293911,0.0379314,3295.9,3295.0,0.7824]
[1732299294115,0.0379314,3295.9,3295.5,2.42755]
[1732299294293,0.15531148,3295.9,3295.5,2.42755]
[1732299295729,0.15531148,3295.9,3295.4,2.42761]
[1732299295932,0.03793244,3295.8,3295.4,2.42761]
[1732299296723,0.03793244,3295.8,3295.4,2.4276]
[1732299297222,0.15531148,3295.9,3295.4,2.4276]
[1732299297409,0.8002,3296.0,3295.6,2.42744]
[1732299297608,0.8002,3296.0,3295.7,2.42739]
[1732299298127,3.7665,3296.5,3295.9,2.42725]
[1732299298332,3.7665,3296.5,3295.9,2.42724]
[1732299298333,0.73361919,3296.4,3295.9,2.42724]
[1732299298625,0.73361918,3296.4,3295.9,2.42724]
[1732299299129,3.76724918,3296.4,3295.9,2.42724]
[1732299299651,0.69569234,3296.4,3295.9,2.4272]
[1732299299953,0.45337492,3296.3,3295.9,2.4272]
[1732299300158,0.49130174,3296.3,3295.9,2.4272]
[1732299300368,0.45337492,3296.3,3295.9,2.4272]
[1732299300525,3.76727916,3296.4,3295.9,2.4272]
[1732299300742,0.69569234,3296.4,3295.9,2.42718]
[1732299301045,0.69569234,3296.4,3296.0,2.42713]
[1732299301475,0.69569234,3296.4,3296.0,2.42711]
[1732299301772,0.69569234,3296.4,3296.1,2.42704]
[1732299302271,0.69569234,3296.4,3296.0,2.42711]
[1732299302474,0.791,3296.8,3296.3,2.42696]
[1732299302648,0.791,3296.8,3296.4,4.85368]
[1732299302848,1.173416,3296.8,3296.4,4.85368]
[1732299303052,1.173416,3296.8,3296.5,2.4268]
[1732299303280,0.791,3296.8,3296.6,2.42673]
[1732299303591,0.815,3297.2,3296.6,2.42669]
[1732299303756,0.40047086,3297.1,3296.6,2.42667]
[1732299304943,3.43348086,3297.1,3296.6,2.42667]
[1732299305165,3.43348086,3297.1,3296.4,2.12348]
[1732299305166,0.43838981,3297.1,3296.4,2.12348]
[1732299305372,3.7995,3296.8,3296.1,3.0]
[1732299305541,3.7995,3296.8,3295.6,2.42703]
[1732299305542,0.03792013,3296.7,3295.7,0.7842]
[1732299305744,0.03792013,3296.7,3296.0,2.12373]
[1732299305950,0.03792013,3296.7,3295.8,5.12387]
[1732299305951,3.03376,3296.3,3295.8,2.12387]
[1732299306169,3.03376,3296.3,3295.6,2.124]
[1732299306376,3.03395,3296.1,3295.4,2.12413]
[1732299306583,3.85237733,3296.2,3295.4,2.12413]
[1732299306584,0.03793123,3296.0,3295.6,2.12403]
[1732299306879,0.41557872,3296.0,3295.6,2.12403]
[1732299307085,0.45350898,3296.0,3295.6,2.12403]
[1732299307388,0.45350898,3296.0,3295.6,2.12404]
[1732299307389,0.41557872,3296.0,3295.6,2.12404]
[1732299307546,0.41557872,3296.0,3295.4,2.12413]
[1732299307547,0.45350897,3296.0,3295.4,2.1241]
[1732299307749,0.34495287,3295.9,3295.5,2.12409]
[1732299308395,0.38288369,3295.9,3295.5,2.12409]
[1732299308693,0.34495287,3295.9,3295.6,2.12403]
[1732299308992,3.81444,3296.2,3295.6,2.12403]
[1732299308993,3.0339,3296.1,3295.6,2.12403]
[1732299309552,3.03398,3296.0,3295.3,2.12422]
[1732299309886,0.7806,3295.8,3295.3,2.12422]
[1732299310182,0.7806,3295.8,3295.3,2.12421]
[1732299310384,0.03793282,3295.7,3295.3,2.12421]
[1732299310714,0.03793282,3295.7,3295.1,2.12433]
[1732299310852,0.03793282,3295.7,3295.2,2.12429]
[1732299311059,3.03439,3295.6,3295.0,2.12441]
[1732299311273,0.8185355,3295.5,3294.9,2.12445]
[1732299311564,1.24614826,3295.5,3294.9,2.12445]
[1732299311767,1.24614826,3295.5,3295.3,2.12422]
[1732299311768,1.20821276,3295.5,3295.3,2.12422]
[1732299311972,0.7806,3295.5,3295.3,2.12422]
[1732299312364,0.7806,3295.5,3295.3,2.12419]
[1732299312568,3.41545,3296.0,3295.5,2.12407]
[1732299312569,0.7828,3295.9,3295.5,2.12407]
[1732299312737,6.03366,3296.4,3295.6,2.12403]
[1732299312738,3.7858,3296.1,3295.6,2.12403]
[1732299312933,3.82372998,3296.1,3295.5,2.12407]
[1732299313138,0.37858,3296.0,3295.5,2.12407]
[1732299313683,0.37858,3296.0,3295.4,0.75]
[1732299313684,0.37858,3296.0,3295.6,2.12399]
[1732299313864,3.45052997,3296.0,3295.5,2.12409]
[1732299314584,0.37858,3296.0,3295.5,2.12409]
[1732299315111,0.37858,3296.0,3295.6,2.12403]
[1732299315307,0.37858,3296.0,3295.4,2.87416]
[1732299315308,3.45049996,3296.0,3295.5,2.1241]
[1732299315468,3.41257,3296.0,3295.5,2.1241]
[1732299315671,0.416447,3295.9,3295.4,0.75]
[1732299315873,3.03421,3295.8,3295.1,0.8007]
[1732299316109,3.0721936,3295.7,3295.1,2.925]
[1732299316313,0.7724,3295.6,3295.1,2.12435]
[1732299316609,0.7724,3295.6,3295.3,2.12423]
[1732299317271,0.7724,3295.6,3295.2,2.12427]
[1732299317875,0.7724,3295.6,3294.9,0.8007]
[1732299318176,3.03417,3295.8,3295.3,2.12418]
[1732299319105,3.03417,3295.8,3295.1,2.12433]
[1732299319405,3.03417,3295.8,3295.2,2.12428]
[1732299319701,3.07220356,3295.7,3295.2,2.12428]
[1732299319887,0.61063736,3295.6,3295.2,2.12428]
[1732299320195,0.03793355,3295.5,3295.0,5.12442]
[1732299320558,0.03793355,3295.5,3294.3,3.50128]
[1732299320559,0.7889,3295.3,3294.3,3.50128]
[1732299320776,0.03793606,3295.2,3294.9,2.12449]
[1732299320966,0.42028506,3295.2,3294.9,2.12449]
[1732299321182,0.42028506,3295.2,3294.9,2.12444]
[1732299321495,0.7889,3295.3,3294.9,2.12444]
[1732299321655,0.7889,3295.3,3295.1,2.12434]
[1732299321991,0.7676,3295.7,3295.1,2.12434]
[1732299322152,3.03439,3295.6,3295.1,2.12434]
[1732299322491,3.07237548,3295.5,3294.9,2.12444]
[1732299322698,0.61067655,3295.4,3294.9,4.24889]
[1732299322875,0.61067655,3295.4,3294.9,2.12444]
[1732299323369,3.64522655,3295.4,3294.7,5.12458]
[1732299323570,3.03439,3295.6,3294.6,0.7537]
[1732299323904,3.0723264,3295.6,3295.1,2.12436]
[1732299324085,0.7676,3295.7,3295.3,2.1242]
[1732299324270,0.7676,3295.7,3295.1,0.7537]
[1732299324478,1.147781,3295.7,3295.3,2.12423]
[1732299324677,1.147781,3295.7,3295.4,2.12416]
[1732299324678,0.7676,3295.7,3295.4,2.12416]
[1732299324877,0.7676,3296.0,3295.5,2.12409]
[1732299325083,0.7676,3296.0,3295.6,2.12403]
[1732299325403,0.7676,3296.0,3295.7,2.12397]
[1732299325615,0.7676,3296.0,3295.1,2.87802]
[1732299325616,0.7676,3296.2,3295.6,2.12398]
[1732299325795,0.7676,3296.8,3296.2,2.12362]
[1732299325978,3.03339,3296.7,3296.2,2.12362]
[1732299326318,3.03352,3296.5,3296.0,2.12376]
[1732299326614,0.380099,3296.6,3296.2,2.12365]
[1732299327481,0.7676,3296.8,3295.9,0.0303376]
[1732299327679,0.7676,3296.8,3296.0,0.55]
[1732299327680,3.80085,3296.8,3296.0,0.55]
[1732299327880,3.80085,3296.8,3296.3,2.12358]
[1732299328211,3.80085,3296.8,3296.4,2.12352]
[1732299328212,0.380085,3296.7,3296.4,2.12352]
[1732299328510,0.7676,3296.8,3296.4,2.12352]
[1732299329003,0.7676,3296.8,3296.1,2.15403585]
[1732299329188,0.7676,3296.8,3296.3,2.12353]
[1732299329617,0.7676,3296.8,3296.2,2.12361]
[1732299329798,0.7676,3296.8,3296.3,2.12357]
[1732299329799,3.80085,3296.8,3296.3,2.12357]
[1732299330123,0.7676,3296.8,3296.1,0.1]
[1732299330325,0.7676,3296.8,3296.4,2.12352]
[1732299330882,0.7676,3296.8,3296.1,0.1]
[1732299330883,0.03791979,3296.7,3296.1,0.1]
[1732299331119,3.80089,3296.8,3296.2,2.12362]
[1732299331326,3.80089,3296.8,3296.2,4.24722]
[1732299331625,4.484288,3296.8,3296.2,2.1236]
[1732299331786,4.484288,3296.8,3296.2,4.24722]
[1732299332419,4.484288,3296.8,3296.3,2.12357]
[1732299332630,4.484288,3296.8,3296.2,2.1236]
[1732299332631,1.450998,3296.8,3296.2,2.1236]
[1732299332811,1.450998,3296.8,3296.4,2.12352]
[1732299333255,0.7676,3296.8,3296.4,2.12352]
[1732299333529,0.7676,3296.8,3296.0,5.12378]
[1732299333690,3.80085,3296.8,3296.2,2.12361]
[1732299333891,3.80085,3296.8,3296.3,2.12359]
[1732299334914,3.80085,3296.8,3296.2,2.12361]
[1732299335226,3.03359,3296.5,3295.8,0.7537]
[1732299335389,3.03359,3296.5,3296.0,2.12375]
[1732299335746,1.147685,3296.8,3295.8,0.7537]
[1732299335747,3.03366,3296.4,3295.8,2.87758]
[1732299335886,3.03366,3296.4,3295.9,2.12383]
[1732299336086,3.03366,3296.4,3296.0,0.1]
[1732299336597,0.61050319,3296.4,3296.0,0.1]
[1732299336807,0.03792192,3296.3,3296.0,0.1]
[1732299337074,3.03388,3296.2,3296.0,0.1]
[1732299337327,3.03388,3296.1,3296.0,0.1]
[1732299337931,0.037925,3296.5,3295.7,2.12397]
[1732299337932,3.03366,3296.4,3295.7,2.12397]
[1732299338131,3.03403,3296.0,3295.4,5.89573]
[1732299338290,3.03403,3296.0,3295.6,0.1]
[1732299338291,3.03421,3295.8,3295.6,0.1]
[1732299339217,3.07218025,3295.7,3295.6,0.1]
[1732299339405,3.89518025,3295.7,3295.6,0.1]
[1732299339605,4.58811928,3295.7,3295.6,0.1]
[1732299339818,1.55386928,3295.7,3294.9,0.7716]
[1732299339994,3.03459,3295.4,3294.9,0.7716]
[1732299340525,3.03462,3295.3,3294.9,0.7716]
[1732299340733,3.03462,3295.3,3294.7,3.0]
[1732299340893,3.03462,3295.3,3294.6,0.7727]
[1732299341096,3.03491,3295.0,3294.6,0.7727]
[1732299341490,3.03491,3295.0,3293.9,2.12513]
[1732299341491,3.03524,3294.7,3294.1,0.7727]
[1732299341732,3.07326106,3294.6,3294.1,0.7727]
[1732299342034,3.03538,3294.5,3294.0,2.12503]
[1732299342260,0.03794447,3294.6,3293.8,0.7727]
[1732299342401,3.0355,3294.4,3293.8,2.89786]
[1732299342737,3.03565,3294.2,3293.6,2.1253]
[1732299342921,3.03565,3294.2,3293.6,2.550373]
[1732299343097,3.03583,3294.0,3293.5,0.7727]
[1732299343492,3.03583,3294.0,3293.6,3.0]
[1732299343793,3.03568,3294.2,3293.6,5.12532]
[1732299343991,0.7659,3294.4,3293.6,5.927625]
[1732299344537,0.7659,3294.4,3293.7,1.82164]
[1732299344538,3.0356,3294.3,3293.7,1.82164]
[1732299344695,3.80136,3294.4,3293.8,1.82159]
[1732299344897,0.805,3294.8,3293.9,2.82724712]
[1732299345094,3.03476,3295.2,3294.1,0.7874]
[1732299345301,0.805,3295.1,3294.6,1.82115]
[1732299345608,3.83982,3295.1,3294.4,1.82126]
[1732299345844,0.805,3295.1,3294.5,1.8212]
[1732299346032,0.805,3295.1,3294.7,1.8211]
[1732299346328,0.805,3295.1,3294.2,3.34688761]
[1732299346329,0.805,3295.1,3294.4,1.82124]
[1732299346540,0.805,3295.1,3294.7,1.8211]